fUSD/lending_fUSD_20241028
["ID","MTS","AMOUNT","RATE_DAILY","PERIOD"]
[340959696,1730159446274,-500.0,0.00043835,14]
[340959697,1730159446283,-500.0,0.00043835,14]
[340959698,1730159446293,-296.85386184,0.00043835,14]
[340959699,1730159446306,-510.50837479,0.00043835,14]
[340959700,1730159446316,-507.69358001,0.00043835,14]
[340959701,1730159446327,-514.32191367,0.00043835,14]
[340959702,1730159446336,-516.78382194,0.00043835,14]
[340959703,1730159446345,-500.0,0.00043835,14]
[340959704,1730159446355,-513.47298625,0.00043835,14]
[340959705,1730159446364,-500.0,0.00043835,14]
[340959706,1730159446373,-182.06801432,0.00043835,14]
[340959707,1730159446383,-504.28702997,0.00043835,14]
[340959708,1730159446392,-506.02158202,0.00043835,14]
[340959709,1730159446401,-507.13354622,0.00043835,14]
[340959710,1730159446410,-507.82098267,0.00043835,14]
[340959711,1730159446420,-500.0,0.00043835,14]
[340959712,1730159446429,-256.72,0.00043835,14]
[340959713,1730159446438,-512.32859764,0.00043835,14]
[340959714,1730159446447,-500.0,0.00043835,14]
[340959715,1730159446456,-545.42457592,0.00043835,14]
[340959716,1730159446468,-576.87535384,0.00043835,14]
[340959717,1730159446476,-500.0,0.00043835,14]
[340959718,1730159446485,-509.12200053,0.00043835,14]
[340959719,1730159446494,-500.0,0.00043835,14]
[340959720,1730159446503,-500.0,0.00043835,14]
[340959721,1730159446513,-500.0,0.00043835,14]
[340959722,1730159446522,-500.0,0.00043835,14]
[340959723,1730159446534,-500.0,0.00043835,14]
[340959724,1730159446544,-525.44864893,0.00043835,14]
[340959725,1730159446556,-504.74635801,0.00043835,14]
[340959726,1730159446566,-509.02837742,0.00043835,14]
[340959727,1730159446575,-500.0,0.00043835,14]
[340959728,1730159446584,-500.0,0.00043835,14]
[340959729,1730159446594,-266.5404392,0.00043835,14]
[340959730,1730159446603,-580.11735369,0.00043835,14]
[340959731,1730159446612,-512.33376844,0.00043835,14]
[340959732,1730159446621,-600.00095584,0.00043835,14]
[340959733,1730159446631,-500.0,0.00043835,7]
[340959734,1730159446640,-517.90063727,0.00043835,14]
[340959735,1730159446650,-500.0,0.00043835,14]
[340959736,1730159446659,-500.0,0.00043835,14]
[340959737,1730159446669,-575.88985915,0.00043835,14]
[340959738,1730159446678,-500.0,0.00043835,14]
[340959739,1730159446688,-508.18225717,0.00043835,14]
[340959740,1730159446697,-581.90463994,0.00043835,14]
[340959741,1730159446707,-500.0,0.00043835,14]
[340959742,1730159446720,-156.43373272,0.00043835,14]
[340959743,1730159446729,-500.0,0.00043835,14]
[340959744,1730159446738,-500.0,0.00043835,14]
[340959745,1730159446749,-520.50921736,0.00043835,14]
[340959746,1730159446758,-419.70833773,0.00043835,14]
[340959747,1730159446767,-524.08225164,0.00043835,14]
[340959748,1730159446776,-500.0,0.00043835,14]
[340959749,1730159446785,-500.0,0.00043835,14]
[340959750,1730159446794,-514.86745397,0.00043835,14]
[340959751,1730159446804,-500.0,0.00043835,14]
[340959752,1730159446813,-500.0,0.00043835,14]
[340959753,1730159446822,-500.0,0.00043835,14]
[340959754,1730159446832,-572.67987278,0.00043835,14]
[340959755,1730159446843,-505.0391378,0.00043835,14]
[340959756,1730159446852,-504.30046142,0.00043835,14]
[340959757,1730159446863,-532.77348787,0.00043835,14]
[340959758,1730159446872,-509.13050206,0.00043835,14]
[340959759,1730159446882,-500.0,0.00043835,14]
[340959760,1730159446893,-150.0,0.00043835,14]
[340959761,1730159446903,-500.0,0.00043835,14]
[340959762,1730159446913,-150.0,0.00043835,14]
[340959763,1730159446926,-500.0,0.00043835,14]
[340959764,1730159446937,-150.0,0.00043835,14]
[340959765,1730159446948,-150.0,0.00043835,14]
[340959766,1730159446957,-150.0,0.00043835,14]
[340959767,1730159446969,-161.48,0.00043835,14]
[340959768,1730159446979,-627.35996754,0.00043835,14]
[340959769,1730159446989,-500.0,0.00043835,14]
[340959770,1730159447121,-531.94493111,0.00043835,14]
[340959771,1730159447132,-500.0,0.00043835,14]
[340959772,1730159447141,-500.0,0.00043835,14]
[340959773,1730159447152,-500.0,0.00043835,14]
[340959774,1730159447161,-288.35,0.00043835,14]
[340959775,1730159447171,-500.0,0.00043835,14]
[340959776,1730159447180,-500.0,0.00043835,14]
[340959777,1730159447189,-500.0,0.00043835,14]
[340959778,1730159447199,-569.28608328,0.00043835,14]
[340959779,1730159447208,-500.0,0.00043835,14]
[340959780,1730159447218,-194.16,0.00043835,14]
[340959781,1730159447228,-500.0,0.00043835,14]
[340959782,1730159447237,-164.3543609,0.00043835,14]
[340959783,1730159447246,-500.0,0.00043835,14]
[340959784,1730159447256,-530.45,0.00043835,14]
[340959785,1730159447266,-507.49136355,0.00043835,14]
[340959786,1730159447275,-537.4321402,0.00043835,14]
[340959787,1730159447284,-520.17417759,0.00043835,14]
[340959788,1730159447294,-598.34258945,0.00043835,14]
[340959789,1730159447304,-500.0,0.00043835,14]
[340959790,1730159447313,-500.0,0.00043835,14]
[340959791,1730159447323,-500.0,0.00043835,14]
[340959792,1730159447332,-500.0,0.00043835,14]
[340959793,1730159447341,-512.02689119,0.00043835,14]
[340959794,1730159447350,-500.0,0.00043835,14]
[340959795,1730159447360,-500.0,0.00043835,14]
[340959796,1730159447369,-500.0,0.00043835,14]
[340959797,1730159447378,-500.0,0.00043835,14]
[340959798,1730159447388,-418.598794,0.00043835,14]
[340959799,1730159447397,-616.66842791,0.00043835,14]
[340959800,1730159447406,-518.64016187,0.00043835,14]
[340959801,1730159447416,-584.43828804,0.00043835,14]
[340959802,1730159447425,-500.0,0.00043835,14]
[340959803,1730159447434,-500.0,0.00043835,14]
[340959804,1730159447443,-524.99184084,0.00043835,14]
[340959805,1730159447453,-500.0,0.00043835,14]
[340959806,1730159447462,-500.0,0.00043835,14]
[340959807,1730159447473,-500.0,0.00043835,14]
[340959808,1730159447482,-500.0,0.00043835,14]
[340959809,1730159447491,-500.0,0.00043835,14]
[340959810,1730159447500,-500.0,0.00043835,14]
[340959811,1730159447510,-500.0,0.00043835,14]
[340959812,1730159447519,-500.0,0.00043835,14]
[340959813,1730159447529,-500.0,0.00043835,14]
[340959814,1730159447538,-500.0,0.00043835,14]
[340959815,1730159447548,-500.0,0.00043835,14]
[340959816,1730159447558,-540.40026593,0.00043835,14]
[340959817,1730159447567,-412.75,0.00043835,14]
[340959818,1730159447576,-540.21666429,0.00043835,14]
[340959819,1730159447586,-500.0,0.00043835,14]
[340959820,1730159447595,-500.0,0.00043835,14]
[340959821,1730159447604,-500.0,0.00043835,14]
[340959822,1730159447615,-500.0,0.00043835,14]
[340959823,1730159447624,-500.0,0.00043835,14]
[340959824,1730159447634,-500.0,0.00043835,14]
[340959825,1730159447644,-519.45,0.00043835,14]
[340959826,1730159447653,-421.145505,0.00043835,14]
[340959827,1730159447663,-509.45561146,0.00043835,14]
[340959828,1730159447672,-1868.37,0.00043835,14]
[340959829,1730159447682,-1868.37,0.00043835,14]
[340959830,1730159447691,-511.40693127,0.00043835,14]
[340959831,1730159447700,-1868.37,0.00043835,14]
[340959832,1730159447710,-1868.37,0.00043835,14]
[340959833,1730159447719,-1868.37,0.00043835,14]
[340959834,1730159447728,-324.66759994,0.00043835,14]
[340959835,1730159447738,-1868.37,0.00043835,14]
[340959836,1730159447747,-1868.37,0.00043835,14]
[340959837,1730159447757,-1868.37,0.00043835,14]
[340959838,1730159447766,-1868.37,0.00043835,14]
[340959839,1730159447775,-500.0,0.00043835,14]
[340959840,1730159447785,-1868.37,0.00043835,14]
[340959841,1730159447794,-1868.37,0.00043835,14]
[340959842,1730159447804,-1868.37,0.00043835,14]
[340959843,1730159447813,-1868.37,0.00043835,14]
[340959844,1730159447823,-1868.37,0.00043835,14]
[340959845,1730159447832,-1868.37,0.00043835,14]
[340959846,1730159447842,-1868.37,0.00043835,14]
[340959847,1730159447851,-1868.37,0.00043835,14]
[340959848,1730159447861,-1868.37,0.00043835,14]
[340959850,1730159447870,-1868.37,0.00043835,14]
[340959852,1730159447879,-1868.37,0.00043835,14]
[340959854,1730159447889,-509.53555854,0.00043835,14]
[340959856,1730159447898,-1868.37,0.00043835,14]
[340959858,1730159447908,-266.61493748,0.00043835,14]
[340959860,1730159447917,-1868.37,0.00043835,14]
[340959862,1730159447927,-1868.37,0.00043835,14]
[340959864,1730159447936,-1868.37,0.00043835,14]
[340959866,1730159447946,-509.44653849,0.00043835,14]
[340959868,1730159447956,-596.83,0.00043835,14]
[340959870,1730159447968,-534.36856984,0.00043835,14]
[340959873,1730159447977,-505.64322132,0.00043835,14]
[340959874,1730159447986,-593.72355226,0.00043835,14]
[340959877,1730159447997,-507.09781757,0.00043835,14]
[340959879,1730159448008,-505.51939374,0.00043835,14]
[340959881,1730159448017,-504.65056599,0.00043835,14]
[340959883,1730159448026,-520.56616535,0.00043835,14]
[340959885,1730159448035,-517.66317617,0.00043835,14]
[340959887,1730159448045,-537.5472946,0.00043835,14]
[340959889,1730159448054,-511.01397062,0.00043835,14]
[340959891,1730159448063,-553.36883789,0.00043835,14]
[340959893,1730159448076,-508.24916178,0.00043835,14]
[340959895,1730159448085,-519.99076899,0.00043835,14]
[340959897,1730159448095,-455.87179659,0.00043835,14]
[340959899,1730159448104,-535.66614418,0.00043835,14]
[340959901,1730159448114,-512.62055144,0.00043835,14]
[340959903,1730159448123,-506.75027449,0.00043835,14]
[340959905,1730159448133,-532.9800929,0.00043835,14]
[340959907,1730159448142,-595.61766352,0.00043835,14]
[340959909,1730159448152,-517.84799625,0.00043835,14]
[340959911,1730159448162,-504.4034138,0.00043835,14]
[340959913,1730159448171,-521.71282211,0.00043835,14]
[340959915,1730159448180,-500.0,0.00043835,14]
[340959917,1730159448191,-608.88160813,0.00043835,14]
[340959919,1730159448200,-510.13432727,0.00043835,14]
[340959921,1730159448210,-269.12980679,0.00043835,14]
[340959923,1730159448220,-519.91196414,0.00043835,14]
[340959925,1730159448229,-509.47528328,0.00043835,14]
[340959927,1730159448238,-586.71551741,0.00043835,14]
[340959929,1730159448248,-521.62462953,0.00043835,14]
[340959931,1730159448257,-523.74675358,0.00043835,14]
[340959933,1730159448266,-505.80029188,0.00043835,14]
[340959935,1730159448275,-516.16092983,0.00043835,14]
[340959937,1730159448284,-533.06568794,0.00043835,14]
[340959939,1730159448294,-524.32326962,0.00043835,14]
[340959940,1730159448303,-548.83491956,0.00043835,14]
[340959942,1730159448312,-500.0,0.00043835,14]
[340959944,1730159448321,-510.51147735,0.00043835,14]
[340959946,1730159448330,-500.0,0.00043835,14]
[340959949,1730159448340,-500.0,0.00043835,14]
[340959951,1730159448350,-431.70521097,0.00043835,14]
[340959953,1730159448359,-509.2018154,0.00043835,14]
[340959955,1730159448369,-523.120843,0.00043835,14]
[340959957,1730159448378,-586.35945204,0.00043835,14]
[340959959,1730159448387,-500.0,0.00043835,14]
[340959961,1730159448395,-500.0,0.00043835,14]
[340959963,1730159448404,-500.0,0.00043835,14]
[340959964,1730159448414,-338.68969913,0.00043835,14]
[340959967,1730159448424,-560.5571021,0.00043835,14]
[340959968,1730159448433,-573.46528754,0.00043835,14]
[340959971,1730159448443,-500.0,0.00043835,14]
[340959972,1730159448452,-500.0,0.00043835,14]
[340959975,1730159448462,-192.57119053,0.00043835,14]
[340959977,1730159448472,-500.0,0.00043835,14]
[340959979,1730159448482,-500.0,0.00043835,14]
[340959980,1730159448491,-500.0,0.00043835,14]
[340959982,1730159448500,-500.0,0.00043835,14]
[340959984,1730159448509,-500.0,0.00043835,14]
[340959986,1730159448519,-503.0,0.00043835,14]
[340959989,1730159448530,-591.27310094,0.00043835,14]
[340959991,1730159448540,-513.64351411,0.00043835,14]
[340959993,1730159448550,-383.94196224,0.00043835,14]
[340959995,1730159448560,-535.64275175,0.00043835,14]
[340959997,1730159448570,-511.14856032,0.00043835,14]
[340959999,1730159448579,-523.38106539,0.00043835,14]
[340960001,1730159448589,-548.86004455,0.00043835,14]
[340960003,1730159448598,-500.0,0.00043835,14]
[340960005,1730159448608,-518.00780699,0.00043835,14]
[340960007,1730159448617,-500.0,0.00043835,14]
[340960009,1730159448626,-500.0,0.00043835,14]
[340960011,1730159448636,-638.55667791,0.00043835,14]
[340960013,1730159448645,-567.12090064,0.00043835,14]
[340960015,1730159448655,-557.39430217,0.00043835,14]
[340960017,1730159448665,-500.0,0.00043835,14]
[340960019,1730159448674,-529.14001556,0.00043835,14]
[340960021,1730159448683,-503.67815919,0.00043835,14]
[340960023,1730159448693,-536.00923874,0.00043835,14]
[340960025,1730159448702,-245.57367714,0.00043835,14]
[340960027,1730159448712,-539.03323088,0.00043835,14]
[340960029,1730159448722,-500.0,0.00043835,14]
[340960030,1730159448731,-364.52473453,0.00043835,14]
[340960031,1730159448740,-529.64082035,0.00043835,14]
[340960032,1730159448750,-618.15737087,0.00043835,14]
[340960033,1730159448759,-500.0,0.00043835,14]
[340960034,1730159448769,-500.0,0.00043835,14]
[340960035,1730159448778,-500.0,0.00043835,14]
[340960036,1730159448787,-500.0,0.00043835,14]
[340960037,1730159448796,-500.0,0.00043835,14]
[340960038,1730159448806,-500.0,0.00043835,14]
[340960039,1730159448815,-507.26939237,0.00043835,14]
[340960041,1730159448825,-500.0,0.00043835,14]
[340960043,1730159448834,-500.0,0.00043835,14]
[340960045,1730159448844,-500.0,0.00043835,14]
[340960047,1730159448853,-500.0,0.00043835,14]
[340960049,1730159448862,-500.0,0.00043835,14]
[340960051,1730159448873,-208.7668036,0.00043835,14]
[340960053,1730159448883,-500.0,0.00043835,14]
[340960055,1730159448893,-500.0,0.00043835,14]
[340960057,1730159448902,-500.0,0.00043835,14]
[340960059,1730159448912,-262.1,0.00043835,14]
[340960061,1730159448922,-500.0,0.00043835,14]
[340960063,1730159448931,-500.0,0.00043835,14]
[340960065,1730159448940,-500.0,0.00043835,14]
[340960067,1730159448949,-500.0,0.00043835,14]
[340960069,1730159448959,-500.0,0.00043835,14]
[340960071,1730159448969,-500.0,0.00043835,14]
[340960074,1730159448980,-500.0,0.00043835,14]
[340960076,1730159448990,-500.0,0.00043835,14]
[340960078,1730159448999,-500.0,0.00043835,14]
[340960079,1730159449009,-500.0,0.00043835,14]
[340960081,1730159449019,-500.0,0.00043835,14]
[340960083,1730159449029,-500.0,0.00043835,14]
[340960085,1730159449039,-528.4128565,0.00043835,14]
[340960087,1730159449049,-527.97874025,0.00043835,14]
[340960089,1730159449058,-500.0,0.00043835,14]
[340960091,1730159449068,-500.0,0.00043835,14]
[340960093,1730159449081,-500.0,0.00043835,14]
[340960095,1730159449091,-500.0,0.00043835,14]
[340960097,1730159449100,-524.08533642,0.00043835,14]
[340960099,1730159449109,-500.0,0.00043835,14]
[340960101,1730159449119,-522.6833183,0.00043835,14]
[340960103,1730159449128,-500.0,0.00043835,14]
[340960105,1730159449138,-500.0,0.00043835,14]
[340960107,1730159449149,-500.0,0.00043835,14]
[340960109,1730159449158,-500.0,0.00043835,14]
[340960111,1730159449168,-500.0,0.00043835,14]
[340960113,1730159449178,-500.0,0.00043835,14]
[340960115,1730159449187,-500.0,0.00043835,14]
[340960117,1730159449197,-518.97,0.00043835,14]
[340960119,1730159449207,-500.0,0.00043835,14]
[340960121,1730159449217,-500.0,0.00043835,14]
[340960124,1730159449228,-549.7762886,0.00043835,14]
[340960126,1730159449237,-500.0,0.00043835,14]
[340960127,1730159449247,-500.0,0.00043835,14]
[340960128,1730159449257,-500.0,0.00043835,14]
[340960129,1730159449267,-500.0,0.00043835,14]
[340960130,1730159449276,-500.0,0.00043835,14]
[340960131,1730159449285,-500.0,0.00043835,14]
[340960132,1730159449295,-500.0,0.00043835,14]
[340960133,1730159449304,-558.02636758,0.00043835,14]
[340960134,1730159449313,-540.15615479,0.00043835,14]
[340960135,1730159449323,-189.62,0.00043835,14]
[340960136,1730159449332,-500.0,0.00043835,14]
[340960137,1730159449341,-178.22,0.00043835,14]
[340960138,1730159449351,-500.0,0.00043835,14]
[340960139,1730159449360,-500.0,0.00043835,14]
[340960140,1730159449369,-500.0,0.00043835,14]
[340960142,1730159449378,-500.0,0.00043835,14]
[340960144,1730159449387,-500.0,0.00043835,14]
[340960146,1730159449397,-500.0,0.00043835,14]
[340960148,1730159449406,-500.0,0.00043835,14]
[340960150,1730159449416,-546.91784271,0.00043835,14]
[340960152,1730159449426,-152.36048555,0.00043835,14]
[340960154,1730159449435,-500.0,0.00043835,14]
[340960162,1730159449565,-505.37324805,0.00043835,14]
[340960163,1730159449575,-527.08869816,0.00043835,14]
[340960164,1730159449585,-500.0,0.00043835,14]
[340960165,1730159449595,-526.24980947,0.00043835,14]
[340960166,1730159449606,-500.0,0.00043835,14]
[340960167,1730159449617,-552.97303283,0.00043835,14]
[340960168,1730159449627,-500.0,0.00043835,14]
[340960169,1730159449637,-500.0,0.00043835,14]
[340960170,1730159449647,-208.02357102,0.00043835,14]
[340960171,1730159449657,-511.02210139,0.00043835,14]
[340960172,1730159449667,-367.3718043,0.00043835,14]
[340960173,1730159449677,-544.43083774,0.00043835,14]
[340960174,1730159449687,-545.79396862,0.00043835,14]
[340960175,1730159449698,-500.0,0.00043835,14]
[340960176,1730159449707,-500.0,0.00043835,14]
[340960177,1730159449718,-500.0,0.00043835,14]
[340960178,1730159449728,-528.08658908,0.00043835,14]
[340960180,1730159449737,-503.84313723,0.00043835,14]
[340960181,1730159449747,-290.49018572,0.00043835,14]
[340960183,1730159449757,-500.0,0.00043835,14]
[340960185,1730159449767,-350.17094676,0.00043835,14]
[340960187,1730159449777,-529.24388643,0.00043835,14]
[340960189,1730159449786,-518.25707682,0.00043835,14]
[340960191,1730159449796,-500.0,0.00043835,14]
[340960193,1730159449805,-538.5758402,0.00043835,14]
[340960195,1730159449815,-500.0,0.00043835,14]
[340960197,1730159449824,-500.0,0.00043835,14]
[340960199,1730159449833,-450.94727379,0.00043835,14]
[340960201,1730159449843,-527.71179345,0.00043835,14]
[340960203,1730159449852,-593.42654428,0.00043835,14]
[340960204,1730159449862,-509.91333405,0.00043835,14]
[340960206,1730159449871,-508.24595842,0.00043835,14]
[340960208,1730159449880,-596.03664736,0.00043835,14]
[340960210,1730159449890,-500.0,0.00043835,14]
[340960212,1730159449900,-500.0,0.00043835,14]
[340960213,1730159449909,-500.0,0.00043835,14]
[340960214,1730159449919,-500.0,0.00043835,14]
[340960215,1730159449928,-500.0,0.00043835,14]
[340960216,1730159449937,-500.0,0.00043835,14]
[340960217,1730159449947,-500.0,0.00043835,14]
[340960218,1730159449956,-500.0,0.00043835,14]
[340960219,1730159449966,-500.0,0.00043835,14]
[340960220,1730159449976,-500.0,0.00043835,14]
[340960222,1730159449986,-500.0,0.00043835,14]
[340960224,1730159449995,-500.0,0.00043835,14]
[340960227,1730159450009,-500.0,0.00043835,14]
[340960229,1730159450018,-488.06636592,0.00043835,14]
[340960231,1730159450028,-500.0,0.00043835,14]
[340960233,1730159450037,-500.0,0.00043835,14]
[340960235,1730159450047,-500.0,0.00043835,14]
[340960237,1730159450056,-500.0,0.00043835,14]
[340960238,1730159450066,-542.16516474,0.00043835,14]
[340960240,1730159450080,-510.13782889,0.00043835,14]
[340960242,1730159450089,-301.8,0.00043835,14]
[340960244,1730159450099,-500.0,0.00043835,14]
[340960246,1730159450109,-500.0,0.00043835,14]
[340960248,1730159450119,-190.93998976,0.00043835,14]
[340960250,1730159450129,-355.25877252,0.00043835,14]
[340960252,1730159450139,-607.80794867,0.00043835,14]
[340960254,1730159450149,-478.65301073,0.00043835,14]
[340960256,1730159450159,-500.0,0.00043835,7]
[340960258,1730159450169,-500.0,0.00043835,7]
[340960260,1730159450179,-500.0,0.00043835,7]
[340960261,1730159450190,-500.0,0.00043835,7]
[340960262,1730159450200,-500.0,0.00043835,14]
[340960263,1730159450210,-500.0,0.00043835,14]
[340960264,1730159450221,-500.0,0.00043835,14]
[340960265,1730159450231,-500.0,0.00043835,7]
[340960266,1730159450241,-500.0,0.00043835,14]
[340960267,1730159450251,-631.39227828,0.00043835,14]
[340960268,1730159450262,-500.0,0.00043835,7]
[340960269,1730159450276,-500.0,0.00043835,7]
[340960270,1730159450286,-220.5246245,0.00043835,7]
[340960271,1730159450296,-970.5,0.00043835,120]
[340960272,1730159450306,-532.37587509,0.00043835,14]
[340960273,1730159450316,-570.64835547,0.00043835,14]
[340960274,1730159450326,-509.86819679,0.00043835,14]
[340960275,1730159450335,-641.19002934,0.00043835,14]
[340960276,1730159450345,-546.10114778,0.00043835,14]
[340960277,1730159450354,-557.82721221,0.00043835,14]
[340960278,1730159450364,-545.83218121,0.00043835,14]
[340960279,1730159450374,-533.24915124,0.00043835,14]
[340960280,1730159450383,-516.84820165,0.00043835,14]
[340960281,1730159450394,-507.32035946,0.00043835,14]
[340960282,1730159450404,-519.36683663,0.00043835,14]
[340960283,1730159450413,-537.16080052,0.00043835,14]
[340960284,1730159450423,-381.85932814,0.00043835,14]
[340960285,1730159450435,-500.0,0.00043835,7]
[340960286,1730159450444,-500.0,0.00043835,14]
[340960287,1730159450455,-500.0,0.00043835,7]
[340960288,1730159450464,-500.0,0.00043835,14]
[340960289,1730159450474,-500.0,0.00043835,14]
[340960290,1730159450484,-429.30065182,0.00043835,7]
[340960291,1730159450493,-500.0,0.00043835,14]
[340960292,1730159450504,-340.99915929,0.00043835,14]
[340960293,1730159450515,-500.0,0.00043835,14]
[340960294,1730159450524,-500.0,0.00043835,14]
[340960295,1730159450534,-500.0,0.00043835,14]
[340960296,1730159450548,-500.0,0.00043835,14]
[340960297,1730159450558,-500.0,0.00043835,14]
[340960298,1730159450568,-277.16,0.00043835,14]
[340960299,1730159450577,-506.07342195,0.00043835,14]
[340960300,1730159450586,-500.0,0.00043835,14]
[340960301,1730159450596,-500.0,0.00043835,14]
[340960302,1730159450606,-500.0,0.00043835,14]
[340960303,1730159450615,-500.0,0.00043835,14]
[340960304,1730159450625,-520.53292226,0.00043835,14]
[340960305,1730159450634,-534.92078072,0.00043835,14]
[340960306,1730159450644,-500.0,0.00043835,14]
[340960307,1730159450654,-500.0,0.00043835,14]
[340960308,1730159450664,-500.0,0.00043835,14]
[340960309,1730159450674,-500.0,0.00043835,14]
[340960310,1730159450684,-500.0,0.00043835,14]
[340960311,1730159450694,-496.5,0.00043835,14]
[340960312,1730159450704,-599.50832348,0.00043835,14]
[340960313,1730159450714,-500.0,0.00043835,14]
[340960314,1730159450724,-500.0,0.00043835,14]
[340960315,1730159450734,-527.47307306,0.00043835,14]
[340960316,1730159450744,-514.54215377,0.00043835,14]
[340960317,1730159450754,-500.0,0.00043835,14]
[340960318,1730159450763,-500.0,0.00043835,14]
[340960319,1730159450773,-500.0,0.00043835,14]
[340960320,1730159450783,-500.0,0.00043835,14]
[340960321,1730159450792,-576.48,0.00043835,14]
[340960322,1730159450802,-209.76503636,0.00043835,7]
[340960323,1730159450812,-500.0,0.00043835,14]
[340960324,1730159450826,-500.0,0.00043835,14]
[340960325,1730159450836,-500.0,0.00043835,14]
[340960326,1730159450846,-500.0,0.00043835,14]
[340960327,1730159450856,-500.0,0.00043835,14]
[340960328,1730159450866,-500.0,0.00043835,14]
[340960329,1730159450876,-500.0,0.00043835,14]
[340960330,1730159450887,-462.01791324,0.00043835,14]
[340960331,1730159450898,-500.0,0.00043835,14]
[340960332,1730159450908,-500.0,0.00043835,14]
[340960333,1730159450919,-500.0,0.00043835,14]
[340960334,1730159450931,-500.0,0.00043835,14]
[340960335,1730159450941,-500.0,0.00043835,14]
[340960336,1730159450952,-533.71229219,0.00043835,14]
[340960337,1730159450962,-500.0,0.00043835,14]
[340960338,1730159450973,-500.0,0.00043835,14]
[340960339,1730159450982,-500.0,0.00043835,14]
[340960340,1730159450992,-500.0,0.00043835,14]
[340960341,1730159451002,-500.0,0.00043835,14]
[340960342,1730159451012,-500.0,0.00043835,14]
[340960343,1730159451022,-1000.0,0.00043835,120]
[340960344,1730159451032,-500.0,0.00043835,14]
[340960345,1730159451043,-272.31779393,0.00043835,14]
[340960346,1730159451054,-500.0,0.00043835,14]
[340960347,1730159451065,-1000.0,0.00043835,120]
[340960348,1730159451080,-1000.0,0.00043835,120]
[340960349,1730159451090,-500.0,0.00043835,14]
[340960350,1730159451100,-236.79,0.00043835,14]
[340960351,1730159451110,-1000.0,0.00043835,120]
[340960352,1730159451122,-1000.0,0.00043835,120]
[340960353,1730159451133,-1000.0,0.00043835,120]
[340960354,1730159451142,-500.0,0.00043835,14]
[340960355,1730159451153,-1000.0,0.00043835,120]
[340960356,1730159451164,-500.0,0.00043835,14]
[340960357,1730159451174,-791.81806947,0.00043835,120]
[340960358,1730159451185,-500.0,0.00043835,14]
[340960359,1730159451196,-500.0,0.00043835,14]
[340960360,1730159451206,-500.0,0.00043835,14]
[340960361,1730159451218,-500.0,0.00043835,14]
[340960362,1730159451229,-283.70111018,0.00043835,14]
[340960363,1730159451239,-588.37,0.00043835,14]
[340960364,1730159451250,-500.0,0.00043835,14]
[340960365,1730159451261,-595.70392578,0.00043835,14]
[340960366,1730159451270,-542.77844391,0.00043835,14]
[340960367,1730159451281,-541.60155731,0.00043835,14]
[340960368,1730159451291,-522.74491315,0.00043835,14]
[340960369,1730159451300,-549.34519979,0.00043835,14]
[340960370,1730159451310,-166.06,0.00043835,14]
[340960371,1730159451320,-520.41838206,0.00043835,14]
[340960372,1730159451330,-500.0,0.00043835,14]
[340960373,1730159451339,-500.0,0.00043835,14]
[340960374,1730159451349,-518.828748,0.00043835,14]
[340960375,1730159451365,-500.0,0.00043835,14]
[340960376,1730159451379,-500.0,0.00043835,14]
[340960377,1730159451389,-500.0,0.00043835,14]
[340960378,1730159451398,-500.0,0.00043835,14]
[340960379,1730159451408,-500.0,0.00043835,14]
[340960380,1730159451418,-500.0,0.00043835,14]